Cogmind - Beta 15 @@@ ROGUE MODE // 2025.08.11 @ 21:55:59 Player: kim.jet.wav Result: Destroyed by 1C-EVE(R) with Subdweller Machine Gun Performance ------------- Evolutions (0) 0 Regions Visited (3) 600 Robots Destroyed (6) 30 Value Destroyed (141) 141 Prototype IDs (0) 0 Alien Tech Used (0) 0 Bonus (118) 118 TOTAL SCORE: 889 Bonus ------- Follower Combat Kills 118 Cogmind --------- Core Integrity 0/250 Matter 275/300 Energy 250/250 System Corruption 0% Temperature Cool (0) Movement Walking (190) Ox1 Location -10/Subcaves Parts ------- > --- POWER (1) -------- Ion Engine > --- PROPULSION (2) --- Aluminum Leg > --- UTILITY (2) ------ Small Storage Unit > --- WEAPON (2) ------- Medium Laser > --- INVENTORY (8) ---- Aluminum Leg Heat Sink Machine Analyzer Subdweller Optics Seismic Detector ECM Suite Subdweller Laser Peak State ------------ > --- POWER ------------ Light Nuclear Core > --- PROPULSION ------- Aluminum Leg Aluminum Leg > --- UTILITY ---------- Small Storage Unit Seismic Detector > --- WEAPON ----------- Medium Laser Small Laser > --- INVENTORY -------- Ion Engine Light Ion Engine Aluminum Leg Heat Sink Structural Scanner Machine Analyzer Subdweller Optics ECM Suite [Rating: 10] Favorites ----------- Power Ion Engine Engine Ion Engine Power Core Light Nuclear Core Propulsion Aluminum Leg Leg Aluminum Leg Utility Small Storage Unit Device Seismic Detector Storage Small Storage Unit Weapon Medium Laser Energy Gun Medium Laser Build | -11 -10 -10 -10 ------- Run | Yrd Mat Min Sub Slots Evolved . | . . . . Power . | . . . . Propulsion . | . . . . Utility . | . . . . Weapon . | . . . . Parts Attached 13 | 7 . 2 4 Power 3 | 1 . 1 1 Engine 2 | 1 . . 1 Core 1 | . . 1 . Reactor . | . . . . Propulsion 3 | 2 . 1 . Treads . | . . . . Leg 3 | 2 . 1 . Wheel . | . . . . Hover . | . . . . Flight . | . . . . Utility 4 | 2 . . 2 Device 3 | 1 . . 2 Storage 1 | 1 . . . Processor . | . . . . Hackware . | . . . . Protection . | . . . . Artifact . | . . . . Weapon 3 | 2 . . 1 Energy Gun 3 | 2 . . 1 Energy Cannon . | . . . . Ballistic Gun . | . . . . Ballistic Cannon . | . . . . Launcher . | . . . . Special Weapon . | . . . . Impact Weapon . | . . . . Slashing Weapon . | . . . . Piercing Weapon . | . . . . Special Melee Weapon . | . . . . Unidentified Prototypes . | . . . . Parts Lost 3 | . . . 3 Power . | . . . . Propulsion 1 | . . . 1 Utility 1 | . . . 1 Weapon 1 | . . . 1 Highest Loss Streak 3 | . . . 3 To Critical Strikes . | . . . . Average Backups 5 | . 2 5 7 Power 1 | . 1 2 . Propulsion . | . . . 1 Utility 3 | . 1 2 4 Weapon . | . . . . Tool/Special . | . . . . Unused Backups 5 | . . . 5 Power 1 | . . . 1 Propulsion . | . . . . Utility 3 | . . . 3 Weapon 1 | . . . 1 Tool/Special . | . . . . Average Slot Usage (%) 99 | . 100 100 99 Engine 8 | . 14 3 9 Core 5 | . . 10 4 Leg 28 | . 28 28 28 Device 13 | . 14 14 13 Storage 14 | . 14 14 14 Energy Gun 28 | . 28 28 28 Peak Build Rating 10 | 7 7 9 10 Average Rating 8 | 5 7 8 9 On Entrance 5 | . 7 7 9 Naked Turns . | . . . . Heaviest Build 16 | 12 12 14 16 Greatest Support 20 | 20 20 20 20 Greatest Overweight (x) 3 | 3 . . . Average Overweight (x) . | . . . . Largest Inventory Capacity 8 | 8 8 8 8 Average Capacity 7 | 7 8 8 8 Most Carried 8 | 1 3 7 8 Average Carried 5 | . 2 6 7 Final Capacity 8 | 8 8 8 8 Final Carried 7 | 1 3 7 7 Class Distribution -------------------- 100% | Mutant Dominant Class ---------------- Mutant | -10/Materials Mutant | -10/Mines Mutant | -10/Subcaves Resources | -11 -10 -10 -10 ----------- Run | Yrd Mat Min Sub Matter Collected 300 | 270 . 20 10 Remotely . | . . . . Salvage Created 215 | 112 . 75 28 Parts 14 | 7 . 6 1 Haulers Intercepted . | . . . . Recyclers Shooed . | . . . . Parts Field Recycled . | . . . . Retrieved Matter . | . . . . Parts Self-Destructed 3 | . . . 3 Prevented . | . . . . Kills | -11 -10 -10 -10 ------- Run | Yrd Mat Min Sub Combat Hostiles Destroyed 3 | . . 2 1 Guns 3 | . . 2 1 Classes Destroyed 4 | 2 . 1 1 Tunneler 2 | 2 . . . Recycler 1 | 1 . . . Grunt 2 | . . 2 . Subdweller 1 | . . . 1 Best Kill Streak 3 | 3 . 2 1 Combat Bots Only 2 | . . 2 1 Max Kills in Single Turn 1 | 1 . 1 1 Gunslinging . | . . . . Exploded . | . . . . Melee . | . . . . Uniques/NPCs Destroyed . | . . . . Combat | -11 -10 -10 -10 -------- Run | Yrd Mat Min Sub Hostile Shots Fired 38 | . . 5 33 Missed 5 | . . 1 4 Hits 33 | . . 4 29 Projectile 33 | . . 4 29 Damage Taken 694 | . . 57 637 Core 261 | . . 28 233 Absorbed by Shields . | . . . . Core Remaining (%) 100 | 100 . . . Volleys Fired 32 | 6 3 4 19 Largest 2 | 2 2 2 2 Hottest 106 | 90 90 90 106 Shots Fired 62 | 12 6 8 36 Gun 62 | 12 6 8 36 Cannon . | . . . . Launcher . | . . . . Special . | . . . . Kinetic . | . . . . Thermal 62 | 12 6 8 36 Explosive . | . . . . Electromagnetic . | . . . . Robot Hit Streak 15 | 6 2 7 15 Robot Miss Streak 2 | 1 2 1 2 Penetration Max . | . . . . Secondary Targets . | . . . . Shots Hit Robots 50 | 9 3 7 31 Core Hits 14 | 4 1 5 4 Critical Kills . | . . . . Critical Parts Destroyed . | . . . . Critical Strikes 5 | 2 1 . 2 Burn 5 | 2 1 . 2 Melee Attacks . | . . . . Impact . | . . . . Slashing . | . . . . Piercing . | . . . . Sneak Attacks . | . . . . Combat Hostiles . | . . . . Follow-up Attacks . | . . . . Damage Inflicted 454 | 107 35 83 229 Guns 454 | 107 35 83 229 Cannons . | . . . . Explosions . | . . . . Melee . | . . . . Ramming . | . . . . Kinetic . | . . . . Thermal 454 | 107 35 83 229 Explosive . | . . . . Electromagnetic . | . . . . Impact . | . . . . Slashing . | . . . . Piercing . | . . . . Highest Corruption . | . . . . Average Corruption . | . . . . Corruption Purged . | . . . . Corruption Blocked . | . . . . Overload Shots . | . . . . Overflow Damage . | . . . . Projectiles . | . . . . Explosions . | . . . . Melee . | . . . . Knockbacks . | . . . . Impact . | . . . . Kinetic . | . . . . Secondary . | . . . . Self-Inflicted Damage . | . . . . Shots . | . . . . Rammed . | . . . . Targets Rammed . | . . . . Kicked . | . . . . Crushed . | . . . . Highest Temperature 180 | 180 90 150 7 Average Temperature 75 | 92 48 82 3 Received Heat Transfer 84 | . . 30 54 Siege Activations . | . . . . Martial Activations . | . . . . Shielding Activations . | . . . . Robots Disrupted . | . . . . Combat Hostiles . | . . . . Robots Corrupted . | . . . . Combat Hostiles . | . . . . Parts Fried . | . . . . Impact Corruptions . | . . . . Robots Melted . | . . . . Combat Hostiles . | . . . . Parts Melted 3 | 3 . . . Heat Transferred 1596 | 445 173 223 755 Parts Sabotaged . | . . . . Parts Stolen . | . . . . Parts Stripped . | . . . . Power Chain Reactions . | . . . . Alert | -11 -10 -10 -10 ------- Run | Yrd Mat Min Sub Maximum Alert Level . | . . . . Low Security (%) 100 | 100 100 100 . Level 1 . | . . . . Level 2 . | . . . . Level 3 . | . . . . Level 4 . | . . . . Level 5 . | . . . . High Security . | . . . . Max Security . | . . . . Peak Influence 50 | 15 . 50 . Initial . | . . . . Average 5 | 1 . 8 . Influence Increases 111 | 15 . 50 46 Destroy 0b10 Robot/C 80 | . . 40 40 Destroy 0b10 Robot/NC 15 | 15 . . . Destroy Leader 10 | . . 10 . Allied During Kill 6 | . . . 6 Influence Decreases 111 | 15 . 50 46 Time Decay 111 | 15 . 50 46 Squads Dispatched 2 | . 2 . . Investigation . | . . . . Extermination . | . . . . Reinforcement 2 | . 2 . . Assault . | . . . . Garrison . | . . . . Intercept . | . . . . Searches Triggered . | . . . . Construction Impeded . | . . . . Haulers Reinforced . | . . . . Active Scanning Responses . | . . . . Cargo Convoy Interrupts . | . . . . Stealth | -11 -10 -10 -10 --------- Run | Yrd Mat Min Sub Distress Signals . | . . . . Communications Jammed . | . . . . Distress Signals . | . . . . Times Spotted 12 | . 3 2 7 Peak Tracking Total 2 | . 2 1 2 Tactical Retreats . | . . . . Traps | -11 -10 -10 -10 ------- Run | Yrd Mat Min Sub Traps Triggered . | . . . . Indirectly . | . . . . Trap Hack Attempts . | . . . . Triggered . | . . . . Disarmed . | . . . . Reprogrammed . | . . . . Reused . | . . . . Traps Extracted . | . . . . Installed . | . . . . Triggered . | . . . . Machines | -11 -10 -10 -10 ---------- Run | Yrd Mat Min Sub Machines Disabled . | . . . . Max in Single Turn . | . . . . Machines Repaired . | . . . . Machines Dismantled . | . . . . Machines Sabotaged . | . . . . Overloaded Fab Kills . | . . . . Hacking | -11 -10 -10 -10 --------- Run | Yrd Mat Min Sub Machines Accessed . | . . . . Terminals . | . . . . Fabricators . | . . . . Repair Stations . | . . . . Recycling Units . | . . . . Scanalyzers . | . . . . Garrison Access . | . . . . Total Hacks . | . . . . Successful . | . . . . Failed . | . . . . Catastrophic . | . . . . Database Lockouts . | . . . . Manual . | . . . . Terminals . | . . . . Fabricators . | . . . . Repair Stations . | . . . . Recycling Units . | . . . . Scanalyzers . | . . . . Garrison Access . | . . . . Terminal Hacks . | . . . . Fabricator Hacks . | . . . . Repair Station Hacks . | . . . . Recycling Unit Hacks . | . . . . Scanalyzer . | . . . . Garrison Access Hacks . | . . . . Unauthorized Hacks . | . . . . Terminals . | . . . . Fabricators . | . . . . Repair Stations . | . . . . Recycling Units . | . . . . Scanalyzers . | . . . . Garrison Access . | . . . . Data Cores Recovered . | . . . . Used . | . . . . Hacking Detections . | . . . . Full Trace Events . | . . . . Feedback Events . | . . . . Feedback Blocked . | . . . . Robot Schematics Acquired . | . . . . Robots Built . | . . . . Authchips . | . . . . Time . | . . . . Total Robot Build Rating . | . . . . Part Schematics Acquired . | . . . . Parts Built . | . . . . Authchips . | . . . . Time . | . . . . Total Part Build Rating . | . . . . Parts Repaired . | . . . . Time . | . . . . Parts Recycled . | . . . . Recycled Matter . | . . . . Retrieved Matter . | . . . . Retrieved Components . | . . . . Parts Scanalyzed . | . . . . Part Schematics Acquired . | . . . . Parts Damaged . | . . . . Bothacking | -11 -10 -10 -10 ------------ Run | Yrd Mat Min Sub Used RIF Installer . | . . . . Robots Hacked . | . . . . Non-combat . | . . . . Combat . | . . . . Robot Hacks Applied . | . . . . Relay Couplers Released . | . . . . Fabnet Peak Effective % . | . . . . Robots Rewired . | . . . . Allies Hacked . | . . . . Hacks Repelled . | . . . . Allies | -11 -10 -10 -10 -------- Run | Yrd Mat Min Sub Total Allies 3 | . . 3 . Largest Group 3 | . . 3 3 Highest-Rated Group 40 | . . 40 40 Highest-Rated Ally 16 | . . 16 16 Total Orders 2 | . . 1 1 FOLLOW 1 | . . . 1 GUARD 1 | . . 1 . Ally Attacks 58 | . . . 58 Total Damage 383 | . . . 383 Kills 4 | . . . 4 Allies Corrupted . | . . . . Allies Melted . | . . . . Intel | -11 -10 -10 -10 ------- Run | Yrd Mat Min Sub Active Infowar (turns) 1038 | 24 129 283 602 Structural 155 | . . . 155 Seismic 883 | 24 129 283 447 Robot Analysis Total . | . . . . Derelict Logs Recovered 2 | . . 1 1 Drone Launches . | . . . . Drone Recoveries . | . . . . Exploration | -11 -10 -10 -10 ------------- Run | Yrd Mat Min Sub Turns Passed 1147 | 110 129 283 625 Spaces Moved 821 | 56 98 204 463 Core 20 | 20 . . . Treads . | . . . . Legs 801 | 36 98 204 463 Wheels . | . . . . Hover . | . . . . Flight . | . . . . Fastest Speed 50 | 50 120 120 120 Average Speed 120 | 126 120 120 120 Slowest Speed 200 | 200 120 120 120 Overloaded Moves . | . . . . Propulsion Burnouts . | . . . . Robots Hopped . | . . . . Potential Cave-ins . | . . . . Cave-ins Triggered . | . . . . Exploration Rate (%) 25 | 4 23 47 26 Regions Visited 3 Branch Regions 2 Pre-discovered Areas . | . . . . Known Exits Taken . | . . . . Unknown Exits Taken 3 | 1 1 1 . Scrap Searched . | . . . . Spaces Dug . | . . . . Terrain Destroyed . | . . . . Melee . | . . . . Projectile . | . . . . AOE . | . . . . Terrain Rammed . | . . . . Walls Destroyed . | . . . . Machines Disabled . | . . . . Actions | -11 -10 -10 -10 --------- Run | Yrd Mat Min Sub Total 912 | 80 103 233 496 Wait 34 | 10 1 21 2 Move 818 | 55 97 203 463 Hop . | . . . . Pick Up 10 | 2 2 3 3 Fast Attach 6 | 6 . . . Attach 1 | 1 . . . Detach . | . . . . Swap 7 | . . 2 5 Drop 4 | . . . 4 Fire 32 | 6 3 4 19 Melee . | . . . . Ram . | . . . . Kick . | . . . . Crush . | . . . . Escape Stasis . | . . . . Rewire . | . . . . Trap . | . . . . Miscellaneous . | . . . . Route ------- -11/Scrapyard -10/Materials -10/Mines -10/Subcaves (discovered 1 exit: Mat) History --------- Turn | Location | Event 8 | -11/Scrapyard | Discovered new exit (range 15) 111 | -11/Scrapyard | Entered Materials 150 | -10/Materials | Discovered new exit (range 15) 240 | -10/Materials | Entered Mines 326 | -10/Mines | Build established: Mutant 360 | -10/Mines | Learned Materials trap positions 402 | -10/Mines | Assisted by bots powering up and referring to "LRC-V3" 484 | -10/Mines | Discovered new exit (range 6) 523 | -10/Mines | Entered Subcaves 523 | -10/Subcaves | Accompanied by 3 allies 524 | -10/Subcaves | Approached by a straggling Scientist 602 | -10/Subcaves | Shifting Twisted Machinery released Sub. Laser 602 | -10/Subcaves | Shifting Twisted Machinery released Mak. Leg 911 | -10/Subcaves | Identified exit to Materials 1117 | -10/Subcaves | Core integrity fell below 50% 1127 | -10/Subcaves | Core integrity fell below 20% 1148 | -10/Subcaves | Destroyed by 1C-EVE(R) with Subdweller Machine Gun Last Messages --------------- 00695_ Y-45 Defender destroyed. 00696_ Heat Sink fries itself beyond repair. 00698_ Acquired 10 matter. 00701_ Dropped Sml. Laser. 00703_ Dropped Lgt. Nuclear Core. 00911_ Acquired derelict log, extracted data. Loading 1 Subcaves exit... 01105_ 6W-PSZ(R) destroyed. 01111_ Subatomizers dissect the Disposable Heat Sink. 01114_ Trooper 1b destroyed. 01118_ IR-ENK(R) affixes Scrap Shield Fragment to Scrap Shield. 01122_ Subatomizers dissect the Disposable Heat Sink. 01123_ IR-ENK(R) suffers critical hit (Burn). 01124_ IR-ENK(R) overheating. 01125_ IR-ENK(R) destroyed. 01128_ Structural Scanner destroyed. 01133_ Subatomizers dissect the Disposable Heat Sink. 01140_ Aluminum Leg destroyed. 01144_ Beam Rifle destroyed. 01148_ Subatomizers dissect the Disposable Heat Sink. Map ----- +----------------------------------------------------+ | #????### %&% ##?????????????? | | ##????### #### ## ###?????????????? | | ##????#### ## # ########?????????????? | | ###???### #######??????????????? | | ###??## # # ####???????????????????? | | # # ##### ## #######???????????????????? | | # #######* #####?????????????????????? | | ## #???##*% ###????????????????????????? | | # # ## #??### ###????????????????????????? | | ##### ###### ####???????????????????????? | | ### #### ###???????????????????????? | | ## ##???????????????????????? | | ##???????????????????????? | | # ######???????????????????? | | ##### ########??????????????????? | | # ## ### ## ??????????????????? | | # ##??????????????????? | | """"" ##??????????????????? | | # " ### #### # #####????????????????? | | # " #### #### ##########???????????????? | | # =" #### #?## #### ###???????????????? | | #"""" " ##### ## ##???????????????? | | #"" " #### """"g ##???????????????? | | #""" "" #####%* "g# ###??????????????? | | # "" ###" #?###= R ####??????????????? | | #" "####" ##?## """" @ ##??????????????? | | ##" ##??"" #### """""& ##??????????????? | | ?###???######?##" """""&% ##??????????????? | | ??????????????##" "" !%& ##??????????????? | | ??????????????##"? " [ ##??????????????? | | ??????????????###?" "" ##??????????????? | | ??????????????###""" " " ##??????????????? | | ????????????????? "" """ ##??????????????? | | ???????????????? "## "" "##??????????????? | | ???????????????? #### ""##??????????????? | | ?????????????????????### """ #??????????????? | | ??????????????????????## """ ???????????????? | | ???????????????????????? "" ?????????????????? | | ????????????????????????"?????????????????????? | | ??????????????????????????????????????????????? | | ??????????????????????????????????????????????? | | ??????????????????????????????????????????????? | | ??????????????????????????????????????????????? | | ??????????????????????????????????????????????? | | ??????????????????????????????????????????????? | | ??????????????????????????????????????????????? | | ??????????????????????????????????????????????? | | ??????????????????????????????????????????????? | | ??????????????????????????????????????????????? | | ??????????????????????????????????????????????? | +----------------------------------------------------+ Best States ------------- Heat Dissipation 25 Energy Generation 14 Energy Capacity 250 Matter Stores 300 Matter Capacity 300 Sight Range 16 Terrain Scan Density 10 Evasion (%) 55 Item Schematics ----------------- None Robot Schematics ------------------ None Fabricated ------------ Nothing Repaired ---------- Nothing Alien Tech Used ----------------- None Achievements -------------- None Challenges ------------ None Game ------ Seed NovaCooledCore Manual? 0 Play Time 00:21:58 Cumulative 40.4 hours Start 2025.08.11 @ 20:26:46 End 2025.08.11 @ 21:55:59 Sessions 1 Manual Loads 0 Difficulty Rogue Special Mode None Game No. 202 Rogue 202 Adventurer 0 Explorer 0 Win Type - Total 0 Types 0/0/0/0/0/0/0/0/0/0 Lore% 14 Gallery% 18 Achievement% 18 Wizard Run 0 Options --------- Layout 0 ASCII 1 Keyboard 1 Movement Numpad Keybinds 1 Fullscreen 1 Font 18/X11 Map View 76x50 Zoom Use 0% Tactical HUD 1 Map Filters NONE Filters NONE Steam 1 RUN: 54de1b90-22ce-4d11-8ec6-9fced27376dd